{"text_format":"2","workbook":"xlsx","n_sheets":7,"sheets":["resumo ","SERVIÇOS PRELI","Grupo II - Projeto Executivo","CPU_CBUQ","BDI_Médio Porte","ENC. SOCIAIS","Mob e Desmob"],"not_rendered":{"charts":0,"images":2,"macros":0,"external_links":2,"defined_names":381,"comments":0,"pivot_tables":0},"unopened":[],"bounds":{"document_bytes":16777216,"sheet_cells":100000,"run_cost":"one","rows_first":2000,"rows_last":500,"rows_between":2000,"halvings":0,"cell_chars":16384,"cell_head_chars":4096},"cells_cut":0,"cells_raw":0,"read":"whole","date_system":"1900"}

{"sheet":"resumo ","index":0,"n_rows":39,"n_cols":11,"rows_kept":39,"cut":false,"hidden":false,"merged":[[33,3,33,6],[35,3,35,6],[37,3,37,6],[30,3,30,6],[24,3,24,6],[16,3,16,6],[25,3,25,6],[26,3,26,6],[17,3,17,6],[21,3,21,6],[22,3,22,6],[23,3,23,6],[38,0,38,9],[7,0,9,10],[11,1,14,1],[11,0,14,0],[10,0,10,10],[31,3,31,6],[11,2,14,2],[11,3,14,6],[11,9,11,10],[12,7,13,8],[15,3,15,6],[18,3,18,6],[19,3,19,6],[20,3,20,6],[27,3,27,6],[28,3,28,6]]}
["EXECUÇÃO DE SERVIÇOS DE IMPLANTAÇÃO DE PAVIMENTAÇÃO EM BLOCO DE CONCRETO INTERTRAVADO, EM VIAS URBANAS E RURAIS DE MUNÍCIPIOS DIVERSOS INSERIDOS NA ÁREA DE ATUAÇÃO DA CODEVASF, NO ESTADO DO AMAPÁ",{"$nulls":8},"Extensão (km)",30]
{"$rows_empty":9}
["EXECUÇÃO DE SERVIÇOS DE IMPLANTAÇÃO DE PAVIMENTAÇÃO EM BLOCO DE CONCRETO INTERTRAVADO, EM VIAS URBANAS E RURAIS DE MUNÍCIPIOS DIVERSOS INSERIDOS NA ÁREA DE ATUAÇÃO DA CODEVASF, NO ESTADO DO AMAPÁ"]
["ITEM","ORIGEM\nCOMPOSIÇÃO","CÓDIGO\nCOMPOSIÇÃO","DISCRIMINAÇÃO DOS SERVIÇOS",{"$nulls":4},"BDI %:",0.2374]
[{"$nulls":7},"Encargos Sociais:",null,"Horista","Mensalista"]
[{"$nulls":9},115.02,70.88]
[{"$nulls":7},"UND","QTDE.","PREÇO UNITÁRIO COM BDI (R$)","TOTAL"]
[null,null,null,"MOBILIZAÇÃO"]
[1,"CODEVASF","Composição Própria","Implantação da Obra",null,null,null,"km",30]
[2,"CODEVASF","Composição Própria","Administração da Obra",null,null,null,"km",30]
[null,null,null,"PAVIMENTAÇÃO"]
[3,"SINAPI",92394,"Execução de Pavimento em Piso Intertravado, com Bloco Sextavado de 25 X 25 cm, espessura 8 cm. AF_12/2015",null,null,null,"m²",210000]
[4,"SICRO",2003844,"Lastro de areia comercial - espalhamento mecânico",null,null,null,"m³",10500]
[5,"SICRO","M0081","Rejunte de areia",null,null,null,"m³",84]
[6,"SICRO",4011276,"Base ou sub-base de brita graduada com brita comercial",null,null,null,"m³",31500]
[7,"SICRO",4011228,"Sub-base estabilizada granulometricamente com mistura de solos na pista com material de jazida",null,null,null,"m³",31500]
[8,"SICRO",4011209,"Regularização do subleito",null,null,null,"m²",210000]
[null,null,null,"SINALIZAÇÃO"]
[9,"SICRO",5213400,"Pintura de faixa - tinta base acrílica - espessura de 0,4 mm",null,null,null,"m²",12000]
[10,"SICRO",5213440,"Fornecimento e implantação de placa de regulamentação em aço D = 0,60 m - película retrorrefletiva tipo I + SI",null,null,null,"und",15]
[11,"SICRO",5213851,"Fornecimento e implantação de suporte metálico galvanizado para placa de regulamentação - D = 0,60 m",null,null,null,"und",15]
[null,null,null,"DRENAGEM"]
[12,"SICRO",2003325,"Sarjeta triangular de concreto - STC 04 - areia e brita comerciais",null,null,null,"m",60000]
[13,"SICRO",2003375,"Meio fio de concreto - MFC 04 - areia e brita comerciais - fôrma de madeira",null,null,null,"m",60000]
[null,null,null,"SERVIÇOS COMPLEMENTARES"]
[14,"SINAPI",94992,"Calçadas",null,null,null,"m²",60000]
[null,null,null,"LIMPEZA GERAL"]
[15,"CODEVASF","Composição Própria","Limpeza Geral",null,null,null,"m²",210000]
[null,null,null,"PROJETO EXECUTIVO"]
[16,"CODEVASF","Composição Própria","Projeto Executivo",null,null,null,"km",30]
["VALOR TOTAL DO SRP",{"$nulls":9},0]

{"sheet":"SERVIÇOS PRELI","index":1,"n_rows":26,"n_cols":9,"rows_kept":26,"cut":false,"hidden":false,"merged":[[7,0,7,8],[0,0,2,8],[3,0,3,8],[4,0,6,4],[4,7,4,8],[5,5,6,6],[25,0,25,4],[8,0,8,8],[10,0,10,8],[11,1,11,4],[11,5,11,8],[16,0,16,4],[16,5,16,6],[17,0,17,8],[18,1,18,4],[18,5,18,8],[21,0,21,4],[21,5,21,6],[22,1,22,4],[22,5,22,8],[25,5,25,6]]}
[]
[]
[]
["EXECUÇÃO DE SERVIÇOS DE IMPLANTAÇÃO DE PAVIMENTAÇÃO EM BLOCO DE CONCRETO INTERTRAVADO, EM VIAS URBANAS E RURAIS DE MUNÍCIPIOS DIVERSOS INSERIDOS NA ÁREA DE ATUAÇÃO DA CODEVASF, NO ESTADO DO AMAPÁ"]
[{"$nulls":6},"BDI %:"]
[{"$nulls":5},"Encargos Sociais:",null,"Horista","Mensalista"]
[]
["Anexo VI - Planilhas Orçamentárias"]
["PLANILHA ORÇAMENTARIA NÁO DESONERADA -Janeiro/2020"]
["ITEM","CPUs","Fonte","Cód.","DISCRIMINAÇÃO DOS SERVIÇOS","UND","QTDE.","PREÇO UNITÁRIO (R$)","TOTAL"]
[]
[1,"IMPLANTAÇÃO DA OBRA"]
["1.1","SERVIÇOS INICIAIS"]
["1.1.1","CPU-01","CODEVASF","74209/1","PLACA DE OBRA EM CHAPA DE ACO GALVANIZADO","und",1]
["1.1.2","CPU-02","CODEVASF",72840,"MOBILIZAÇÃO E DESMOBILIZAÇÃO","und",1]
["1.1.3","CPU-02","CODEVASF",72840,"DESMOBILIZAÇÃO - TRANSPORTE COMERCIAL COM CAMINHAO CARROCERIA 9 T, RODOVIA PAVIMENTADA","t x km",0,2010.0900000000001,0]
[{"$nulls":5}," ITEM 1:",null,"TOTAL"]
[]
[2,"ADMINISTRAÇÃO DA OBRA"]
["2.1","CPU-03","CODEVASF","2.1","ADMINISTRAÇÃO LOCAL","%",1]
["2.2","CPU-04","CODEVASF","2.2","CANTEIRO DE OBRAS E ALMOXARIFADO","MÊS",12]
[{"$nulls":5}," ITEM 2:",null,"TOTAL"]
[3,"CALÇADA"]
["3.1",null,"SINAPI",94994,"EXECUÇÃO DE PASSEIO(CALÇADA) OU PISO DE CONCRETO COM CONCRETO MOLDADO IN LOCO, FEITO EM OBRA, ACABAMENTO CONVENCIONAL, e = 6 cm, ARMADO.","M²",60000]
[]
[{"$nulls":5}," ITEM 3:",null,"TOTAL"]

{"sheet":"Grupo II - Projeto Executivo","index":2,"n_rows":64,"n_cols":9,"rows_kept":64,"cut":false,"hidden":false,"merged":[[63,1,63,7],[3,0,4,8],[39,1,39,6],[38,1,38,6],[37,1,37,6],[56,3,56,4],[57,3,57,4],[58,3,58,4],[59,1,59,6],[60,1,60,6],[61,1,61,6],[49,3,49,4],[50,3,50,4],[51,3,51,4],[52,3,52,4],[53,3,53,4],[54,3,54,4],[43,3,43,4],[44,3,44,4],[45,3,45,4],[46,3,46,4],[47,3,47,4],[48,3,48,4],[33,1,33,6],[35,1,35,6],[36,1,36,6],[28,3,28,4],[29,3,29,4],[30,1,30,6],[31,1,31,6],[32,1,32,6],[27,3,27,4],[16,3,16,4],[18,3,18,4],[19,3,19,4],[20,3,20,4],[21,1,21,6],[22,1,22,6],[23,1,23,6],[25,3,25,4],[26,3,26,4],[17,3,17,4],[15,3,15,4],[5,0,5,8],[7,0,7,5],[8,0,8,8],[11,3,11,4],[14,3,14,4]]}
[]
[]
[]
[{"$f":"'resumo '!A1","v":"EXECUÇÃO DE SERVIÇOS DE IMPLANTAÇÃO DE PAVIMENTAÇÃO EM BLOCO DE CONCRETO INTERTRAVADO, EM VIAS URBANAS E RURAIS DE MUNÍCIPIOS DIVERSOS INSERIDOS NA ÁREA DE ATUAÇÃO DA CODEVASF, NO ESTADO DO AMAPÁ"}]
[]
["COMPOSIÇÃO DA ELABORAÇÃO DO PROJETO EXECUTIVO"]
[]
["SISTEMA DE REGISTRO DE PREÇO CODEVASF"]
["OBRA: PAVIMENTAÇÃO ASFÁLTICA DE VIAS RURAIS EM MUNICÍPIOS NO ÂMBITO DA ÁREA DE ATUAÇÃO DA CODEVASF, NO ESTADO DO TOCANTINS "]
[]
[]
["Item","Descrição dos serviços","Unid.","Quant.",null,"SINAPI ","R$UNIT","R$PARCIAL","R$TOTAL"]
["1.0","PROJETO EXECUTIVO",{"$nulls":6},{"$f":"H40","v":0}]
["1.1","MÃO DE OBRA"]
["A","CAMPO"]
[null,"ENGENHEIRO","h",8]
[null,"TOPÓGRAFO","h",16]
[null,"AUXILIAR DE TOPÓGRAFO","h",16]
["B","GABINETE"]
[null,"ENGENHEIRO","h",8]
[null,"CADISTA/CALCULISTA","h",20]
[null," ",{"$nulls":5},{"$f":"SUM(H16:H21)","v":0}]
[null,{"$f":"CONCATENATE(\"SUBTOTAL DA MÃO DE OBRA COM LEIS SOCIAIS (\",K9,\"%):\")","v":"SUBTOTAL DA MÃO DE OBRA COM LEIS SOCIAIS (%):"},{"$nulls":5},{"$f":"ROUND(K9*(H22),2)","v":0}]
[null,"CUSTO HORÁRIO TOTAL DA MÃO DE OBRA:",{"$nulls":5},{"$f":"SUM(H22:H23)","v":0}]
[]
["1.2","LOCOMOÇÃO - EQUIPE DE CAMPO","Unid.","Quant.",null,null,"R$UNIT","R$PARCIAL"]
[null,"CAMINHONETE ","h",8]
[null,"COMBUSTIVEL - DIESEL","l",2]
["1.3","EQUIPAMENTOS"]
[null,"ESTAÇÃO TOTAL CLASSE 2","h",16]
[null,"SUBTOTAL DOS MATERIAIS:",{"$nulls":5},{"$f":"SUM(H27:H30)","v":0}]
[null,"CUSTO TOTAL DA MÃO DE OBRA + EQUIPAMENTOS:",{"$nulls":5},{"$f":"H24+H31","v":0}]
[null,"DESPESAS GERAIS E MATERIAIS DE CONSUMO (6,00%)",{"$nulls":5},{"$f":"H32*0.06","v":0}]
[null,"CUSTO TOTAL DA MÃO DE OBRA + EQUIPAMENTOS + DESPESAS GERAIS:",{"$nulls":5},{"$f":"H33+H32","v":0}]
[]
[null,"SUBTOTAL MENSAL:",{"$nulls":5},{"$f":"SUM(H34)","v":0}]
[null,{"$f":"CONCATENATE(\"SUBTOTAL (DIA-CONSIDERANDO \",K11,\" DIAS TRABALHADOS):\")","v":"SUBTOTAL (DIA-CONSIDERANDO  DIAS TRABALHADOS):"}]
[null,{"$f":"CONCATENATE(\"SUBTOTAL LEV. PLANIALTIMÉTRICO (CONSIDERANDO UMA PRODUTIVIDADE DE  \",K12,\" km/DIA)\"&\"):\")","v":"SUBTOTAL LEV. PLANIALTIMÉTRICO (CONSIDERANDO UMA PRODUTIVIDADE DE   km/DIA)):"}]
[null,{"$f":"CONCATENATE(\"CUSTO COM BDI (\",K10,\"%):\")","v":"CUSTO COM BDI (%):"}]
[null,"CUSTO TOTAL DO LEVANTAMENTO PLANIALTIMÉTRICO:"]
[]
["2.0","ELABORAÇÃO DO ORÇAMENTO, COMPOSIÇÕES UNITÁRIAS DE CUSTO, MEMORIAIS E ESPECIFICAÇÕES",{"$nulls":6},{"$f":"H62","v":0}]
["2.1","EXPRESSO PELA RELAÇÃO: R =  Σ(Qi x P) + DD (1+ A) + CO"]
["2.2","QUANTIDADE DE DOCUMENTOS DE CADA TIPO (Qi)","un",1,null,null,{"$f":"G45","v":0},{"$f":"ROUND(G44*D44,2)","v":0}]
["2.3","PREÇO UNITÁRIO DE CADA TIPO DE DOCUMENTO","un",1,null,null,{"$f":"G47+G55","v":0}]
[null,"         P = CD (1 + ES) (1 + DI) (1 + L) (1 + EF) (1 + I)"]
["A","CUSTO DIRETO DE SALÁRIOS (CD)",null,1,null,null,{"$f":"ROUND((D49/D50)*D53,2)","v":0}]
[null,"        CD = [(Sm / Nh) x ht]"]
[null,"        SALÁRIO BRUTO MENSAL (Sm)","mês",{"$f":"SUM(G20+G21)*40","v":0}]
[null,"        NÚMERO MÉDIO DE HORAS ÚTEIS POR MÊS (Nh=Nd x J)","h",24]
[null,"        NÚMERO MÉDIO DE DIAS ÚTEIS POR MÊS DURANTE O ANO (Nd)","dia",{"$f":"K11","v":0}]
[null,"        JORNADA DIÁRIA DE TRABALHO (J)","h",8]
[null,"        QUANTIDADE DE HORAS TRABALHADAS NO SERVIÇO (ht)","h",8]
[]
["B","ENCARGOS SOCIAIS (ES)","%",{"$f":"K9","v":0},null,null,{"$f":"ROUND(G47*D55,2)","v":0}]
[]
["2.4","DESPESAS DIRETAS (DD)","%",3.74,null,null,null,{"$f":"ROUND($H$44*D57/100,2)","v":0}]
["2.5","TAXA DE ADMINISTRAÇÃO (A)","%",4.75,null,null,null,{"$f":"ROUND($H$57*D58/100,2)","v":0}]
["2.6","CONTIGÊNCIAS","%",5.77,null,null,null,{"$f":"ROUND($H$44*D59/100,2)","v":0}]
[null,"CUSTO TOTAL DA ELABORAÇÃO DO PROJETO:",{"$nulls":5},{"$f":"SUM(H44:H59)","v":0}]
[null,{"$f":"CONCATENATE(\"CUSTO COM BDI (\",K10,\"%):\")","v":"CUSTO COM BDI (%):"},{"$nulls":5},{"$f":"ROUND(H60*K10,2)","v":0}]
[null,"PREÇO UNITÁRIO TOTAL:",{"$nulls":5},{"$f":"H60+H61","v":0}]
[]
[null,"CUSTO TOTAL DA ELABORAÇÃO DO PROJETO EXECUTIVO PARA UM TRECHO",{"$nulls":6},{"$f":"SUM(I13:I63)","v":0}]

{"sheet":"CPU_CBUQ","index":3,"n_rows":66,"n_cols":8,"rows_kept":66,"cut":false,"hidden":false,"merged":[[7,0,7,7],[0,0,2,7],[3,0,3,7],[4,0,6,3],[4,6,4,7],[5,4,6,5],[8,6,9,6],[8,7,9,7],[20,4,20,6],[23,5,23,6],[25,0,26,0],[25,1,26,1],[25,2,26,2],[25,3,26,3],[25,4,26,4],[25,5,26,5],[8,0,9,0],[8,1,9,1],[8,2,9,2],[8,3,9,3],[8,4,9,4],[8,5,9,5],[37,0,38,0],[37,1,38,1],[37,2,38,2],[37,3,38,3],[37,4,38,4],[48,5,48,6],[25,6,26,6],[25,7,26,7],[32,4,32,6],[35,5,35,6],[37,5,38,5],[37,6,38,6],[37,7,38,7],[45,4,45,6],[46,4,46,6],[47,4,47,6],[50,6,51,6],[50,7,51,7],[54,4,54,6],[57,5,57,6],[50,0,51,0],[50,1,51,1],[50,2,51,2],[50,3,51,3],[50,4,51,4],[50,5,51,5],[59,6,60,6],[59,7,60,7],[62,4,62,6],[65,5,65,6],[59,0,60,0],[59,1,60,1],[59,2,60,2],[59,3,60,3],[59,4,60,4],[59,5,60,5]]}
[]
[]
[]
[{"$f":"'resumo '!A1","v":"EXECUÇÃO DE SERVIÇOS DE IMPLANTAÇÃO DE PAVIMENTAÇÃO EM BLOCO DE CONCRETO INTERTRAVADO, EM VIAS URBANAS E RURAIS DE MUNÍCIPIOS DIVERSOS INSERIDOS NA ÁREA DE ATUAÇÃO DA CODEVASF, NO ESTADO DO AMAPÁ"}]
[{"$nulls":5},"BDI %:"]
[{"$nulls":4},"Encargos Sociais:",null,"Horista","Mensalista"]
[]
["COMPOSIÇÕES DE CUSTO UNITARIO"]
["CPU-01","CODEVASF","74209/1","PLACA DE OBRA EM CHAPA DE ACO GALVANIZADO","M2","COEF.","PRECO UNITÁRIO (R$)","TOTAL (R$)"]
[]
["INS. SINAPI","SINAPI",5075,"Prego 18x30.","kg",0.11,null,{"$f":"ROUND(F11*G11,2)","v":0}]
["INS. SINAPI","SINAPI",4491,"Peca de madeira nativa / regional 7,5 x 7,5cm (3x3) nao aparelhada (p/forma)","m",4,null,0]
["INS. SINAPI","SINAPI",4417,"Peca de madeira de lei *2,5 x 7,5* cm (1\" x 3\"), não aparelhada, (p/telhado)","m",1,null,0]
["INS. SINAPI","SINAPI",4813,"Placa de obra (para construcao civil) em chapa galvanizada *nº 22*, de *2,0 x 1,125* m","m²",1,null,0]
["INS. SINAPI","SINAPI",370,"Areia Média","m³",4.8999999999999998E-3,null,0]
["INS. SINAPI","SINAPI",1379,"Cimento","kg",1.5,null,0]
["INS. SINAPI","SINAPI",4718,"Pedra Britada nº 2","m³",9.7999999999999997E-3,null,0]
["COMP. SINAPI","SINAPI",87445,"Betoneira 320 l, diesel, potencia de 5,5 hp, sem carregador mecanico (locacao)","h",6.4999999999999997E-3,null,{"$f":"ROUND(F18*G18,2)","v":0}]
["COMP. SINAPI","SINAPI",88262,"CARPINTEIRO DE FORMAS COM ENCARGOS COMPLEMENTARES","h",1,null,{"$f":"ROUND(F19*G19,2)","v":0}]
["COMP. SINAPI","SINAPI",88316,"SERVENTE COM ENCARGOS COMPLEMENTARES","h",2.06,null,{"$f":"ROUND(F20*G20,2)","v":0}]
[{"$nulls":4},"Sub total:",null,null,{"$f":"SUM(H11:H20)","v":0}]
[{"$nulls":5},"BDI ",null,{"$f":"ROUND(H21*G22,2)","v":0}]
[{"$nulls":6},"Total Serviços:",{"$f":"H21+H22","v":0}]
[{"$nulls":4},{"$f":"A9","v":"CPU-01"},"PREÇO UNITÁRIO TOTAL:",null,{"$f":"H23","v":0}]
[]
["CPU-02","CODEVASF","Propria","MOBILIZAÇÃO E DESMOBILIZAÇÃO","T X KM","COEF.","PRECO UNITÁRIO (R$)","TOTAL (R$)"]
[]
["COMP. SINAPI","SINAPI",73340,"CAMINHÃO TOCO, PBT 14.300 KG, CARGA ÚTIL MÁX. 9.710 KG, DIST. ENTRE EIXOS 3,56 M, POTÊNCIA 185 CV, INCLUSIVE CARROCERIA FIXA ABERTA DE MADEIRA P/ TR ANSPORTE GERAL DE CARGA SECA, DIMEN. APROX. 2,50 X 6,50 X 0,50 M - MATERIA IS NA OPERAÇÃO. AF_06/2014","H",2,null,{"$f":"ROUND(F28*G28,2)","v":0}]
["COMP. SINAPI","SINAPI",67826,"CAMINHÃO BASCULANTE 6 M3 TOCO, PESO BRUTO TOTAL 16.000 KG, CARGA ÚTIL MÁXI CHP MA 11.130 KG, DISTÂNCIA ENTRE EIXOS 5,36 M, POTÊNCIA 185 CV, INCLUSIVE CAÇAMBA METÁLICA - CHP DIURNO. AF_06/2014","CHP",2,null,{"$f":"ROUND(F29*G29,2)","v":0}]
["COMP. SINAPI","SINAPI",6259,"CAMINHÃO PIPA 6.000 L, PESO BRUTO TOTAL 13.000 KG, DISTÂNCIA ENTRE EIXOS 4 CHP ,80 M, POTÊNCIA 189 CV INCLUSIVE TANQUE DE AÇO PARA TRANSPORTE DE ÁGUA, CAPACIDADE 6 M3 - CHP DIURNO. AF_06/2014","CHP",2,null,{"$f":"ROUND(F30*G30,2)","v":0}]
["EQUIP.ORSE","ORSE",2745,"Transporte de máquinas e equipamentos por prancha rebaixada\n(min.=100km)","km",500,null,{"$f":"ROUND(F31*G31,2)","v":0}]
["INSUMO","ORSE",5896,"Veículo tipo sedan ou pick-up capacidade 0,6 ton","h",3,null,{"$f":"ROUND(F32*G32,2)","v":0}]
[{"$nulls":4},"Sub total:",null,null,{"$f":"SUM(H28:H32)","v":0}]
[{"$nulls":5},"BDI ",null,{"$f":"ROUND(H33*G34,2)","v":0}]
[{"$nulls":6},"Total Serviços:",{"$f":"H33+H34","v":0}]
[{"$nulls":4},{"$f":"A26","v":"CPU-02"},"PREÇO UNITÁRIO TOTAL:",null,{"$f":"H35","v":0}]
[]
["CPU-03","CODEVASF",null,"ADMINISTRAÇÃO LOCAL","%","COEF.","PRECO UNITÁRIO (R$)","TOTAL (R$)"]
[]
["COMP. SINAPI","SINAPI",90777,"ENGENHEIRO CIVIL DE OBRA JUNIOR COM ENCARGOS COMPLEMENTARES","H",20,null,{"$f":"ROUND(F40*G40,2)","v":0}]
["COMP. SINAPI","SINAPI",90780,"MESTRE DE OBRAS COM ENCARGOS COMPLEMENTARES","H",40,null,0]
["COMP. SINAPI","SINAPI",90772,"AUXILIAR DE ESCRITORIO COM ENCARGOS COMPLEMENTARES","H",40,null,0]
["INS. SINAPI","SINAPI",14250,"ENERGIA","KW/H",100,null,0]
["INS. SINAPI","SINAPI",14583,"ÁGUA TARIFA \"A\" ENTRE 0 E 20M3 FORNECIMENTO D'AGUA","M3",1,null,0]
["INSUMO","ORSE",4415,"Veículo leve - Volkswagen:GOL 1000 - automóvel até 100 hp","H",40,null,0]
[{"$nulls":4},"ADM. LOCAL :",null,null,{"$f":"SUM(H40:H45)","v":0}]
[{"$nulls":4},"Total para 6 meses:"]
[{"$nulls":7},{"$f":"ROUND(E48*H46,2)","v":0}]
[{"$nulls":4},{"$f":"A38","v":"CPU-03"},"PREÇO TOTAL:",null,{"$f":"H46+H48","v":0}]
[]
["CPU-04","CODEVASF",null,"CANTEIRO DE OBRAS E ALMOXARIFADO","MÊS","COEF.","PRECO UNITÁRIO (R$)","TOTAL (R$)"]
[]
["INS. SINAPI","SINAPI",10775,"Locação de container - Escritório com banheiro - 6,20 x 2,20m","mês",0.2,null,{"$f":"ROUND(F53*G53,2)","v":0}]
["COMP. ORSE","ORSE",4299,"Aluguel de container - Almoxarifado sem banheiro - 6,00 x 2,40m","mês",0.2,null,{"$f":"ROUND(F54*G54,2)","v":0}]
[{"$nulls":4},"Sub total:",null,null,{"$f":"SUM(H53:H54)","v":0}]
[{"$nulls":5},"BDI ",null,{"$f":"ROUND(H55*G56,2)","v":0}]
[{"$nulls":6},"Total Serviços:",{"$f":"H55+H56","v":0}]
[{"$nulls":4},{"$f":"A51","v":"CPU-04"},"PREÇO UNITÁRIO TOTAL:",null,{"$f":"H57","v":0}]
[]
["CPU-11","CODEVASF",null,"LIMPEZA GERAL","UNID","COEF.","PRECO UNITÁRIO (R$)","TOTAL (R$)"]
[]
["COMP. SINAPI","SINAPI",88316,"SERVENTE COM ENCARGOS COMPLEMENTARES","H",0.05,null,{"$f":"ROUND(F62*G62,2)","v":0}]
[{"$nulls":4},"Sub total:",null,null,{"$f":"SUM(H62:H62)","v":0}]
[{"$nulls":5},"BDI",null,{"$f":"ROUND(H63*G64,2)","v":0}]
[{"$nulls":6},"Total Serviços:",{"$f":"H63+H64","v":0}]
[{"$nulls":4},{"$f":"A60","v":"CPU-11"},"PREÇO UNITÁRIO TOTAL:",null,{"$f":"H65","v":0}]

{"sheet":"BDI_Médio Porte","index":4,"n_rows":30,"n_cols":4,"rows_kept":30,"cut":false,"hidden":false,"merged":[[4,0,4,3],[5,0,5,3],[6,0,6,3]]}
[]
["OBRA:"]
["LOCAL: "]
["DATA BASE: "]
["DETALHAMENTO DO BDI"]
["Serviços"]
["Atualização em 2013."]
[]
["Item","Descrição dos serviços","Preço de Venda (%)","Custo Direto (%)"]
[]
[1,"Administração Central (A)"]
[]
[2,"Impostos e Taxas (I)"]
["2.1","ISS"]
["2.2","PIS"]
["2.3","Cofins"]
[]
["3","Risco, seguro e garantia (R) "]
[]
[4,"Despesas Financeiras (AP)"]
[]
[5,"Lucro (L)"]
[]
[null,"BDI* (%)",null,{"$f":"ROUND(((((1+D11+D18)*(1+D20)*(1+D22))/(1-C13))-1),4)","v":0}]
[]
["Considerações:"]
["Acórdão Nº 2622/2013 – TCU – Plenário"]
["(*) BDI (%) = ((((1+AC+R)*(1+DF)*(1+L))/(1-I))-1)","Médio, em área e prazo em condições normais de execução"]
["Tipo da Obra:","50% de X% (valor da tabela Prefeitura de XXX)"]
["ISS municipal:"]

{"sheet":"ENC. SOCIAIS","index":5,"n_rows":51,"n_cols":6,"rows_kept":51,"cut":false,"hidden":false,"merged":[[8,0,9,5],[50,0,50,1],[10,0,10,5],[11,2,11,3],[11,4,11,5],[12,0,12,5],[13,0,14,1],[13,2,14,2],[13,3,14,3],[13,4,14,4],[13,5,14,5],[15,0,15,5],[26,0,26,5],[38,0,38,5],[45,0,45,5],[49,0,49,5]]}
[]
[]
[]
[]
[]
["NOME DA CONCORRENTE:"]
["EDITAL:"]
["FOLHA:"]
[{"$f":"'resumo '!A1","v":"EXECUÇÃO DE SERVIÇOS DE IMPLANTAÇÃO DE PAVIMENTAÇÃO EM BLOCO DE CONCRETO INTERTRAVADO, EM VIAS URBANAS E RURAIS DE MUNÍCIPIOS DIVERSOS INSERIDOS NA ÁREA DE ATUAÇÃO DA CODEVASF, NO ESTADO DO AMAPÁ"}]
[]
["DETALHAMENTO DOS ENCARGOS SOCIAIS (%)"]
["VIGÊNCIA A PARTIR DE 01/2020",null,"COM DESONERAÇÃO",null,"SEM DESONERAÇÃO"]
[]
[null,null,"HORISTA","MENSALISTA","HORISTA","MENSALISTA"]
[]
["GRUPO A"]
["A1","INSS",0,0]
["A2","SESI",1.5,1.5]
["A3","SENAI",1,1]
["A4","INCRA",0.2,0.2]
["A5","SEBRAE",0.6,0.6]
["A6","Salário Educação",2.5,2.5]
["A7","Seguro Contra Acidentes de Trabalho",3,3]
["A8","FGTS",8,8]
["A9","SECONCI",1,1]
["A","Total",{"$f":"SUM(C17:C25)","v":17.8},{"$f":"SUM(D17:D25)","v":17.8},{"$f":"SUM(E17:E25)","v":0},{"$f":"SUM(F17:F25)","v":0}]
["GRUPO B"]
["B1","Repouso Semanal Remunerado",17.88,"-"]
["B2","Feriados",3.94,"-"]
["B3","Auxílio-enfermidade",0.91,0.69]
["B4","13° salário",10.98,8.33]
["B5","Licença-paternidade",7.0000000000000007E-2,0.06]
["B6","Faltas Justificadas",0.73,0.56000000000000005]
["B7","Dias de chuva",1.45,"-"]
["B8","Auxílio Acidente de Trabalho",0.11,0.09]
["B9","Férias Gozadas",11.35,8.6199999999999992]
["B10","Salário Maternidade",0.03,0.03]
["B","Total ",{"$f":"SUM(C28:C37)","v":47.45},{"$f":"SUM(D28:D37)","v":18.380000000000003},{"$f":"SUM(E28:E37)","v":0},{"$f":"SUM(F28:F37)","v":0}]
["GRUPO C"]
["C1","Aviso Prévio Indenizado",6.76,5.14]
["C2","Aviso Prévio Trabalhado",0.16,0.12]
["C3","Férias Indenizadas",2.2799999999999998,1.73]
["C4","Depósito Rescisão Sem Justa Causa",3.81,2.89]
["C5","Indenização Adicional",0.56999999999999995,0.43]
["C","Total ",{"$f":"SUM(C40:C44)","v":13.58},{"$f":"SUM(D40:D44)","v":10.31},{"$f":"SUM(E40:E44)","v":0},{"$f":"SUM(F40:F44)","v":0}]
["GRUPO D"]
["D1","Reincidência de A sobre B",8.4499999999999993,3.27]
["D2","Reincidência de Grupo A sobre Aviso Prévio Trabalhado e Reincidência do FGTS sobre Aviso Prévio Indenizado",0.56999999999999995,0.43]
["D","Total",{"$f":"SUM(C47:C48)","v":9.02},{"$f":"SUM(D47:D48)","v":3.7},{"$f":"SUM(E47:E48)","v":0},{"$f":"SUM(F47:F48)","v":0}]
[]
["T O T A L (%)",null,{"$f":"C26+C38+C45+C49","v":87.85},{"$f":"D26+D38+D45+D49","v":50.190000000000012},{"$f":"E26+E38+E45+E49","v":0},{"$f":"F26+F38+F45+F49","v":0}]

{"sheet":"Mob e Desmob","index":6,"n_rows":32,"n_cols":9,"rows_kept":32,"cut":false,"hidden":true,"merged":[[9,0,9,1],[1,0,1,13],[2,0,2,13],[3,0,3,13],[4,0,4,13],[6,0,7,13],[19,0,19,1],[29,0,29,1],[30,0,30,3],[31,0,31,3],[11,0,11,1],[12,0,12,1],[13,0,13,1],[14,0,14,1],[15,0,15,3],[16,0,16,3]]}
[]
[]
[]
[]
[{"$f":"'resumo '!A1","v":"EXECUÇÃO DE SERVIÇOS DE IMPLANTAÇÃO DE PAVIMENTAÇÃO EM BLOCO DE CONCRETO INTERTRAVADO, EM VIAS URBANAS E RURAIS DE MUNÍCIPIOS DIVERSOS INSERIDOS NA ÁREA DE ATUAÇÃO DA CODEVASF, NO ESTADO DO AMAPÁ"}]
[]
["MEMÓRIA DE CÁLCULO DOS MOMENTOS DE TRANSPORTE PARA MOBILIZAÇÃO E DESMOBILIZAÇÃO"]
[]
[]
["Deslocamento:"]
[null,null,"Distancia méd. (Km)","Qtde. ","Total (Km)"]
["Mobilização (entre os trechos de serviço):",null,1,1,{"$f":"C12*D12","v":1}]
["Desmobilização   (entre os trechos de serviço):",null,1,1,{"$f":"C13*D13","v":1}]
["Mobilização inter-municipal (entre as localidades):",null,50,1,{"$f":"C14*D14","v":50}]
["Desmobilização   inter-municipal (entre as localidades):",null,50,1,{"$f":"C15*D15","v":50}]
["Mobilização - Total (km)",null,null,null,{"$f":"E12+E14","v":51}]
["Desmobilização - Total (km)",null,null,null,{"$f":"E13+E15","v":51}]
[]
[]
["Peso das máquinas:"]
[{"$nulls":4},"Trator de esteiras",null,null,10.15," ton"]
[{"$nulls":4},"Pá carregadeira ",null,null,10.1," ton"]
[{"$nulls":4},"Motoniveladora ",null,null,12.47," ton"]
[{"$nulls":4},"Trator de pneus",null,null,2.8," ton"]
[{"$nulls":4},"Rolo Compactador ",null,null,15.33," ton"]
[{"$nulls":4},"Grade de disco",null,null,1," ton"]
[]
[{"$nulls":4},"Total",null,null,{"$f":"ROUND(SUM(H20:H27),2)","v":51.85}," ton"]
[]
["Portanto:","Portanto"]
["Mobilização - Total (km)",null,null,null,{"$f":"E16*H28","v":2644.35}," t x km"]
["Desmobilização - Total (km)",null,null,null,{"$f":"E17*H28","v":2644.35}," t x km"]